Workbook

Sheet Лист1
B2: Утверждаю | C2: Утверждаю
B3: _______________________________________ | C3: Ремонт квартир Stroymaster35
B4: _______________________________________ | C4: ___________________________________________
B5: _______________________________________ | C5: _____________________________ В.В. Мацкевич
B6: "____" _________________________2017 г. | C6: "___"_________________________________2017 г.
B8: Заказчик: г.Вологда
B9: Подрядчик: Ремонт квартир в Вологде Stroymaster35
B10: г. Вологда, ул. Октябрьская д. 13а кв. 36
B11: Тел. 8(911)541-69-78 В.В Мацкевич
B13: Площадь однокомнатной квартиры - 42,9 м2
B14: Тип дома кирпичный, высота потолков 2,57 м
B15: Общая площадь стен - 128,25 м2
B16: Стоимость ремонтно-отделочных работ -153038,5 руб.
B17: Примерная стоимость черновых материалов - 47395 руб.
B18: Итого за м2 - 3567 руб.
A20: № | B20: Наименование работ | C20: Ед. изм | D20: Кол-во. | E20: Цена в руб. за ед. изм. | F20: Стоимость работ в руб.
B21: Ремонт кухни S пола = 10,8 м2, S стен = 28 м2
B22: Ремонт пола
A23: 1 | B23: Гидроизоляция | C23: м2 | D23: 10.8 | E23: 200 | F23: =D23*E23 -> 2160
A24: 2 | B24: Монтаж лаг брусок 50*50 | C24: м2 | D24: 10.8 | E24: 250 | F24: =D24*E24 -> 2700
A25: 3 | B25: Утепление материал пенофлекс | C25: м2 | D25: 10.8 | E25: 50 | F25: 540
A26: 4 | B26: Настил листов цсп | C26: м2 | D26: 10.8 | E26: 50 | F26: 540
A27: 5 | B27: Обработка бетоноконтактом | C27: м2 | D27: 10.8 | E27: 50 | F27: 540
A28: 6 | B28: Укладка керамогранита с затиркой швов | C28: м2 | D28: 10.8 | E28: 600 | F28: 6480
B29: Ремонт стен
A30: 1 | B30: Обработка укрепляющей грунтовкой | C30: м2 | D30: 28 | E30: 50 | F30: 1400
A31: 2 | B31: Частичное нанесение финишной шпаклёвки | C31: м2 | D31: 28 | E31: 50 | F31: 1400
A32: 3 | B32: Повторная обработка укрепляющей грунтовкой | C32: м2 | D32: 28 | E32: 50 | F32: 1400
A33: 4 | B33: Поклейка обоев | C33: м2 | D33: 23 | E33: 100 | F33: 2300
A34: 5 | B34: Укладка фартука с затиркой швов примерно 5*1 | C34: м2 | D34: 5 | E34: 600 | F34: 3000
A35: 6 | B35: Монтаж плинтусов из полиуретана | C35: п/м | D35: 12 | E35: 100 | F35: 1200
B36: Элетромонтажные работы
A37: 1 | B37: Замена розеток, выключателя | C37: шт | D37: 5 | E37: 150 | F37: 750
A38: 2 | B38: Монтаж проводки с выкл. для точеч. светил. на потолок | C38: комплект | D38: 1 | E38: 435 | F38: 435
A39: 3 | B39: Монтаж и вывод новых розеток | C39: шт | D39: 3 | E39: 150 | F39: 450
B40: Плотницкие работы
B41: Установка одностороннего дверного блока ручка, петли | C41: комплект | D41: 1 | E41: 2350 | F41: 2350
B42: Ремонт потолка
B43: Монтаж натяжного потолка, освещение люста и точ. Светльники | C43: комплекс | D43: 10.8 | E43: 690 | F43: 7452
A44: Итоговая стоимость ремонта кухни | F44: =SUM(F23:F43) -> 35097
B45: Ремонт ванной S пола = 3,88 м2, S стен = 19,5 м2
B46: Ремонт пола
A47: 1 | B47: Гидроизоляция | C47: м2 | D47: 3.88 | E47: 200 | F47: =D47*E47 -> 776
A48: 2 | B48: Монтаж лаг брусок 50*50 | C48: м2 | D48: 3.88 | E48: 250 | F48: =D48*E48 -> 970
A49: 3 | B49: Утепление материал пенофлекс | C49: м2 | D49: 3.88 | E49: 50 | F49: 194
A50: 4 | B50: Настил листов цсп | C50: м2 | D50: 3.88 | E50: 50 | F50: 194
A51: 5 | B51: Обработка бетоноконтактом | C51: м2 | D51: 3.88 | E51: 50 | F51: 194
A52: 6 | B52: Уклудка керамогранита с затиркой швов | C52: м2 | D52: 3.88 | E52: 600 | F52: 2328
B53: Ремонт стен
A54: 1 | B54: Монтаж короба для скрытия труб и стояков | C54: м2 | D54: 3 | E54: 450 | F54: 1350
B55: Обработка бетоноконтактом | C55: м2 | D55: 19.5 | E55: 50 | F55: 975
B56: Укладка керамической плитки с затиркой швов | C56: м2 | D56: 19.5 | E56: 600 | F56: 11700
B57: Монтаж смотровых лючков на коробе | C57: шт | D57: 2 | E57: 400 | F57: 800
B58: Элетромонтажные работы
A59: 1 | B59: Вывод разетки под водонагреватель, стир. машину, фен | C59: комплекс | D59: 1 | E59: 1350 | F59: 1350
A60: 2 | B60: Монтаж вентилятора на отдельный выключатель | C60: шт | D60: 1 | E60: 950 | F60: 950
A61: 3 | B61: Плотницкие работы
A62: 1 | B62: Установка одностороннего дверного блока ручка, защёлка, петли | C62: комплект | D62: 1 | E62: 2500 | F62: 2500
B63: Сантехнические работы
A64: 1 | B64: Демонтаж ванной | C64: шт | D64: 1 | E64: 800 | F64: =D64*E64 -> 800
A65: 2 | B65: Монтаж ванной с герметизацией по периметру | C65: шт | D65: 1 | E65: 1000 | F65: 1000
A66: 3 | B66: Демонтаж унитаза | C66: шт | D66: 1 | E66: 600 | F66: 600
A67: 4 | B67: Установка подвесного унитаза/Инстоляции | C67: шт | D67: 1 | E67: 2500 | F67: 2500
A68: 5 | B68: Монтаж подключения для раковины, стир. машины, водонагревателя | C68: комплекс | D68: 1 | E68: 1300 | F68: 1300
A69: 6 | B69: Монтаж стиральной машины с подключением | C69: шт | D69: 1 | E69: 600 | F69: 600
A70: 7 | B70: Монтаж душевой стойки со смесителем | C70: шт | D70: 1 | E70: 650 | F70: 650
A71: 8 | B71: Монтаж смесителя на раковину | C71: шт | D71: 1 | E71: 350 | F71: 350
A72: 9 | B72: Монтаж подвесной раковины | C72: шт | D72: 1 | E72: 600 | F72: 600
A73: 10 | B73: Монтаж водонагревателя | C73: шт | D73: 1 | E73: 1000 | F73: 1000
A74: 11 | B74: Перенос приборов учёта воды для комфортного снятия показаний | C74: шт | D74: 2 | E74: 600 | F74: 1200
B75: Ремонт потолка
A76: 1 | B76: Монтаж потолка из пластиковых панелей с точ. светильниками | C76: м2 | D76: 3.88 | E76: 450 | F76: 1746
A77: 2 | B77: Монтаж полочек, зеркала, шкафчика | C77: шт | D77: 3 | E77: 300 | F77: 900
A78: Итоговая стоимость ремонта совмещённого санузла | F78: =SUM(F47:F77) -> 37527
B79: Ремонт прихожей S пола = 8 м2, S стен = 29,5м2
B80: Ремонт пола
A81: 1 | B81: Монтаж лаг брусок 50*50 | C81: м2 | D81: 8 | E81: 250 | F81: =E81*D81 -> 2000
A82: 2 | B82: Утепление материал пенофлекс | C82: м2 | D82: 8 | E82: 50 | F82: =E82*D82 -> 400
A83: 3 | B83: Настил листов фанеры | C83: м2 | D83: 8 | E83: 50 | F83: 400
A84: 4 | B84: Укладка подложки | C84: м2 | D84: 8 | E84: 50 | F84: 400
A85: 5 | B85: Настил паркетной доски | C85: м2 | D85: 8 | E85: 400 | F85: 3200
B86: Ремонт стен
A87: 1 | B87: Монтаж перегородки для гардеробной 1,73 м *2,57 | C87: м2 | D87: 4.5 | E87: 400 | F87: 1800
A88: 2 | B88: Обработка укрепляющей грунтовкой | C88: м2 | D88: 32.3 | E88: 50 | F88: 1615
A89: 3 | B89: Частичное нанесение финишной шпаклёвки | C89: м2 | D89: 32.3 | E89: 50 | F89: 1615
A90: 4 | B90: Повторная обработка укрепляющей грунтовкой | C90: м2 | D90: 32.3 | E90: 50 | F90: 1615
A91: 5 | B91: Поклейка обоев | C91: м2 | D91: 32.3 | E91: 100 | F91: 3230
A92: 6 | B92: Монтаж плинтусов из полиуретана | C92: п/м | D92: 12 | E92: 100 | F92: 1200
B93: Элетромонтажные работы
A94: 1 | B94: Замена розеток, выключателя | C94: шт | D94: 2 | E94: 150 | F94: 300
A95: 2 | B95: Монтаж и вывод новых розеток | C95: шт | D95: 2 | E95: 150 | F95: 300
A96: 3 | B96: Перенос домофонной трубки | C96: шт | D96: 1 | E96: 450 | F96: 450
B97: Ремонт потолка
B98: Монтаж натяжного потолка с точ. светльниками | C98: комплекс | D98: 8 | E98: 690 | F98: 5520
A99: Итоговая стоимость ремонта прихожей | F99: =SUM(F81:F98) -> 24045
B100: Ремонт комнаты S пола = 15,8 м2, S стен = 36,4 м2
B101: Ремонт пола
B102: Монтаж лаг брусок 50*50 | C102: м2 | D102: 15.8 | E102: 250 | F102: =D102*E102 -> 3950
B103: Утепление материал пенофлекс | C103: м2 | D103: 15.8 | E103: 50 | F103: =D103*E103 -> 790
B104: Настил листов фанеры | C104: м2 | D104: 15.8 | E104: 50 | F104: 790
B105: Укладка подложки | C105: м2 | D105: 15.8 | E105: 50 | F105: 790
B106: Настил паркетной доски | C106: м2 | D106: 15.8 | E106: 400 | F106: 6320
B107: Ремонт стен
B108: Устроиство дверного проёма для гардеробной 750*2080 | C108: м2 | D108: 1.6 | E108: 250 | F108: 400
B109: Обработка укрепляющей грунтовкой | C109: м2 | D109: 34.8 | E109: 50 | F109: 1740
B110: Частичное нанесение финишной шпаклёвки | C110: м2 | D110: 34.8 | E110: 50 | F110: 1740
B111: Повторная обработка укрепляющей грунтовкой | C111: м2 | D111: 34.8 | E111: 50 | F111: 1740
B112: Поклейка обоев | C112: м2 | D112: 34.8 | E112: 100 | F112: 3480
B113: Монтаж плинтусов из полиуретана | C113: м/п | D113: 14.7 | E113: 100 | F113: 1470
B114: Элетромонтажные работы
B115: Замена розеток, выключателя | C115: шт | D115: 6 | E115: 150 | F115: 900
B116: Плотницкие работы
B117: Установка одностороннего дверного блока ручка, петли | C117: комплект | D117: 2 | E117: 2350 | F117: 4700
B118: Ремонт потолка
B119: Монтаж натяжного потолка освещение люстра и точ. светльники | C119: комплекс | D119: 15.8 | E119: 690 | F119: 10902
B120: Общая стоимость ремонта комнаты | F120: =SUM(F102:F119) -> 39712
B121: Ремонт балкона S пола = 4,45 м2, S стен = 14,85 м2
B122: Ремонт пола
B123: Монтаж лаг брусок 50*50 | C123: м2 | D123: 4.45 | E123: 250 | F123: =E123*D123 -> 1112.5
B124: Утепление материал пенофлекс | C124: м2 | D124: 4.45 | E124: 50 | F124: =E124*D124 -> 222.5
B125: Настил листов фанеры | C125: м2 | D125: 4.45 | E125: 50 | F125: 222.5
B126: Укладка подложки | C126: м2 | D126: 4.45 | E126: 50 | F126: 222.5
B127: Настил ламината | C127: м2 | D127: 4.45 | E127: 50 | F127: 222.5
B128: Отделка порожка | C128: шт | D128: 1 | E128: 400 | F128: 400
B129: Ремонт стен
B130: Монтаж обрешётки из брусков 50*50 | C130: м2 | D130: 14.85 | E130: 250 | F130: 3712.5
B131: Утепление материал пенофлекс | C131: м2 | D131: 14.85 | E131: 50 | F131: 742.5
B132: Монтаж плинтусов из полиуретана | C132: п/м | D132: 9.5 | E132: 100 | F132: 950
B133: Отделка вагонкой | C133: м2 | D133: 14.85 | E133: 350 | F133: 5197.5
B134: Элетромонтажные работы
B135: Вывод освещения | C135: шт | D135: 1 | E135: 1350 | F135: 1350
B136: Монтаж розетки и выключателя | C136: шт | D136: 2 | E136: 150 | F136: 300
B137: Ремонт потолка
B138: Монтаж потолка из пластиковых панелей с точ. светильниками | C138: м2 | D138: 4.45 | E138: 450 | F138: 2002.5
A139: Общая стоимость стоимость ремонта балкона | F139: =SUM(F123:F138) -> 16657.5
A140: Итоговая стоимость ремонта квартиры | F140: =F139+F120+F99+F78+F44 -> 153038.5

Sheet Лист2
B1: Смета на черновые материалы
A2: № | B2: Наименование материалов | C2: Количество | D2: Стоимость в руб.
A3: 1 | B3: Штукатурка ротбанд белый 30кг | C3: 2 | D3: 980
A4: 2 | B4: Шпаклевка боларс полимерная финишная super супербелая 20 кг | C4: 4 | D4: 1769
A5: 3 | B5: Клей для плитки кнауф «флизенклебер» 25кг | C5: 12 | D5: 3780
A6: 4 | B6: Грунт боларс акриловый глубокого проникновения 10 кг | C6: 1 | D6: 535
A7: 5 | B7: Гидроизоляция боларс готовая hydromast 2,5 кг | C7: 4 | D7: 2000
A8: 6 | B8: Грунт боларс адгезионный акриловый бетоноконтакт 10 кг | C8: 1 | D8: 680
A9: 7 | B9: Профиль угло защитный перфорированный оцин. 20*20мм 3м | C9: 10 | D9: 250
A10: 8 | B10: Профиль пп 60/27 3м (кнауф, толщ.0,6мм) | C10: 4 | D10: 97
A11: 9 | B11: Профиль пн 27/28 3м (толщ.0,50мм) | C11: 12 | D11: 95
A12: 10 | B12: Профиль пс 50/50 3м (толщ.0,50мм) стоечный | C12: 4 | D12: 98
A13: 11 | B13: Профиль направляющий ПН 50/40 3м | C13: 4 | D13: 107
A14: 12 | B14: Гкл кнауф 12,5мм 1200*2500 лист | C14: 2 | D14: 530
A15: 13 | B15: Гипсоволокно КНАУФ ГВЛВ-А-ПК 2500х1200х10мм | C15: 1 | D15: 463
A16: 14 | B16: Герметик Soudal санитарный 300мл белый | C16: 1 | D16: 225
A17: 15 | B17: Пена -клей MAКРОФЛЕКС профессиональная 850мл | C17: 3 | D17: 1401
A18: 16 | B18: Брусок 50*50*3000мм сорт А антисептированный | C18: 48 | D18: 5952
A19: 17 | B19: Брусок строганный 50х40х3000 септированный | C19: 24 | D19: 2352
A20: 18 | B20: Фанера ФК 10 мм 1525х1525 мм сорт 4/4 нешлифованная лист | C20: 13 | D20: 7345
A21: 19 | B21: Пенополистирол псб-с-15 у 1000*1000*50 мм | C21: 62 | D21: 5146
A22: 20 | B22: Элемент пола Пешалань ЭП 1250х500х19 | C22: 25 | D22: 6725
A23: 21 | B23: Саморез гкл-металл 3,5*35 (1000 шт) | C23: 1 | D23: 270
A24: 22 | B24: Саморез для гвл 3,9*45 (1000 шт) | C24: 3 | D24: 1500
A25: 23 | B25: Саморез 4,2*25 прессшайба цинк сверло 200 шт | C25: 1 | D25: 160
A26: 24 | B26: Дюбель-гвоздь 6*80 пот. манжета (полипропилен) /100шт/ | C26: 7 | D26: 1050
A27: 25 | B27: Дюбель-гвоздь борт 6*60 sm-g (200 шт) | C27: 1 | D27: 168
A28: 26 | B28: Провод электрический ПУГНП 3 х 1,5 освещение | C28: 20 | D28: 660
A29: 27 | B29: Провод электрический ПУГНП 3 х 2,5 разводка | C29: 20 | D29: 1320
A30: 28 | B30: Ведро 12л евро с мет. ручкой | C30: 2 | D30: 310
A31: 29 | B31: Розетка этюд одиночная с заземлением, пылевлагозащищенная | C31: 3 | D31: 450
A32: 30 | B32: Выключатель kaptika с подс. 2-клавишный белый | C32: 2 | D32: 332
A33: 31 | B33: Выключатель kaptika с подс. 1-клавишный белый | C33: 3 | D33: 525
A34: 32 | B34: Коробка монтажная hegel круглая 68мм для сплошных стен | C34: 12 | D34: 120
A35: Общая сумма материалов | D35: =SUM(D3:D34) -> 47395
